[Event "Late-Titled-Tuesday-Blitz-March-26-2024"]
[Site "Chess.com"]
[Date "2024.03.26"]
[Round "3"]
[White "AsaHoffmann"]
[Black "Vahe_Danielyan"]
[Result "1/2-1/2"]
[WhiteElo "2423"]
[BlackElo "2609"]
[TimeControl "180+1"]
[EndTime "14:31:23 PDT"]
[Termination "Game drawn by repetition"]

1. d4 {[%clk 0:02:54.8]} 1... Nf6 {[%clk 0:02:58.2]} 2. Bg5 {[%clk 0:02:54.2]}
2... Ne4 {[%clk 0:02:55.6]} 3. Bf4 {[%clk 0:02:54.1]} 3... d5 {[%clk 0:02:53.6]}
4. f3 {[%clk 0:02:54.1]} 4... Nf6 {[%clk 0:02:53.2]} 5. e4 {[%clk 0:02:53.9]}
5... dxe4 {[%clk 0:02:51.5]} 6. Nc3 {[%clk 0:02:53.8]} 6... Bf5 {[%clk 0:02:46]}
7. fxe4 {[%clk 0:02:51.9]} 7... Nxe4 {[%clk 0:02:43.1]} 8. Qf3 {[%clk
0:02:51.4]} 8... Nxc3 {[%clk 0:02:10.1]} 9. bxc3 {[%clk 0:02:50.5]} 9... Nd7
{[%clk 0:02:08]} 10. Qxb7 {[%clk 0:02:39]} 10... Rb8 {[%clk 0:02:07.3]} 11. Qxc7
{[%clk 0:02:33.6]} 11... Qxc7 {[%clk 0:02:05.9]} 12. Bxc7 {[%clk 0:02:33]} 12...
Rb2 {[%clk 0:02:04.7]} 13. Bd3 {[%clk 0:02:17.8]} 13... Bxd3 {[%clk 0:02:02.7]}
14. cxd3 {[%clk 0:02:17.6]} 14... h5 {[%clk 0:02:01.4]} 15. Ne2 {[%clk 0:02:09]}
15... Rh6 {[%clk 0:01:57.5]} 16. Rf1 {[%clk 0:01:47.1]} 16... Re6 {[%clk
0:01:55]} 17. Rf2 {[%clk 0:01:46.6]} 17... Nf6 {[%clk 0:01:54.9]} 18. h3 {[%clk
0:01:39]} 18... Nd5 {[%clk 0:01:47.1]} 19. Ba5 {[%clk 0:01:38.4]} 19... g5
{[%clk 0:01:44.8]} 20. Kf1 {[%clk 0:01:35.5]} 20... Bg7 {[%clk 0:01:39.7]} 21.
Ng3 {[%clk 0:01:27.8]} 21... Rb5 {[%clk 0:01:36.2]} 22. c4 {[%clk 0:01:20.4]}
22... Rc5 {[%clk 0:01:33.8]} 23. cxd5 {[%clk 0:01:14.5]} 23... Rxd5 {[%clk
0:01:25.8]} 24. Bc3 {[%clk 0:01:13.3]} 24... Rc6 {[%clk 0:01:22.7]} 25. Bb2
{[%clk 0:01:07.6]} 25... Bxd4 {[%clk 0:01:19.7]} 26. Bxd4 {[%clk 0:01:01.7]}
26... Rxd4 {[%clk 0:01:20.6]} 27. Rd1 {[%clk 0:01:01.2]} 27... h4 {[%clk
0:01:16.9]} 28. Ne4 {[%clk 0:00:58.8]} 28... f6 {[%clk 0:01:15]} 29. Re2 {[%clk
0:00:56.5]} 29... Kf7 {[%clk 0:01:12.2]} 30. Kf2 {[%clk 0:00:50.8]} 30... Kg6
{[%clk 0:01:09.1]} 31. Ke3 {[%clk 0:00:50.1]} 31... e5 {[%clk 0:01:07.7]} 32.
Rf1 {[%clk 0:00:44.2]} 32... f5 {[%clk 0:01:05.5]} 33. Nd2 {[%clk 0:00:38.3]}
33... Rc3 {[%clk 0:01:04.8]} 34. Nf3 {[%clk 0:00:28.6]} 34... Re4+ {[%clk
0:00:44.3]} 35. Kf2 {[%clk 0:00:26.8]} 35... Rxe2+ {[%clk 0:00:45.2]} 36. Kxe2
{[%clk 0:00:26.9]} 36... Rc2+ {[%clk 0:00:45.1]} 37. Kd1 {[%clk 0:00:25.9]}
37... Rxg2 {[%clk 0:00:43.4]} 38. Nxe5+ {[%clk 0:00:25.8]} 38... Kf6 {[%clk
0:00:40.1]} 39. Nf3 {[%clk 0:00:24.9]} 39... Rxa2 {[%clk 0:00:37.2]} 40. Rg1
{[%clk 0:00:21.1]} 40... g4 {[%clk 0:00:34.6]} 41. hxg4 {[%clk 0:00:20.2]} 41...
Ra1+ {[%clk 0:00:35.2]} 42. Ke2 {[%clk 0:00:18.9]} 42... Rxg1 {[%clk 0:00:36.1]}
43. Nxg1 {[%clk 0:00:18.8]} 43... fxg4 {[%clk 0:00:34.9]} 44. Kf2 {[%clk
0:00:16.9]} 44... h3 {[%clk 0:00:31.3]} 45. Kg3 {[%clk 0:00:16.7]} 45... a5
{[%clk 0:00:29.3]} 46. Ne2 {[%clk 0:00:14.8]} 46... a4 {[%clk 0:00:29.9]} 47.
Nc3 {[%clk 0:00:14.9]} 47... a3 {[%clk 0:00:29.1]} 48. d4 {[%clk 0:00:15.1]}
48... Kf5 {[%clk 0:00:27.4]} 49. d5 {[%clk 0:00:14.9]} 49... Ke5 {[%clk
0:00:27.2]} 50. Kh2 {[%clk 0:00:15]} 50... Kd6 {[%clk 0:00:21.2]} 51. Kg3 {[%clk
0:00:14.7]} 51... Kc5 {[%clk 0:00:21.6]} 52. Kh2 {[%clk 0:00:14.8]} 52... Kc4
{[%clk 0:00:15.6]} 53. Kg3 {[%clk 0:00:14.5]} 53... Kxc3 {[%clk 0:00:15]} 54. d6
{[%clk 0:00:14.7]} 54... a2 {[%clk 0:00:13.1]} 55. d7 {[%clk 0:00:14.8]} 55...
a1=Q {[%clk 0:00:13.4]} 56. d8=Q {[%clk 0:00:14.4]} 56... Qg1+ {[%clk
0:00:13.2]} 57. Kh4 {[%clk 0:00:14.2]} 57... h2 {[%clk 0:00:14.1]} 58. Qc7+
{[%clk 0:00:13.4]} 58... Kd3 {[%clk 0:00:13.6]} 59. Qd6+ {[%clk 0:00:13.1]}
59... Ke2 {[%clk 0:00:13.2]} 60. Qe5+ {[%clk 0:00:12.7]} 60... Kf1 {[%clk
0:00:10.9]} 61. Qb5+ {[%clk 0:00:09.8]} 61... Ke1 {[%clk 0:00:08.8]} 62. Qe5+
{[%clk 0:00:09]} 62... Kd2 {[%clk 0:00:06.8]} 63. Qd5+ {[%clk 0:00:08.7]} 63...
Ke2 {[%clk 0:00:07]} 64. Qe5+ {[%clk 0:00:08.7]} 64... Kf3 {[%clk 0:00:07.6]}
65. Qf5+ {[%clk 0:00:08.3]} 65... Ke3 {[%clk 0:00:08.1]} 66. Qe5+ {[%clk
0:00:08.2]} 66... Kd2 {[%clk 0:00:08]} 67. Qd5+ {[%clk 0:00:08.1]} 67... Kc3
{[%clk 0:00:06.8]} 68. Qc6+ {[%clk 0:00:07.3]} 68... Kd4 {[%clk 0:00:06.4]} 69.
Qb6+ {[%clk 0:00:07.3]} 69... Ke5 {[%clk 0:00:06.5]} 70. Qb5+ {[%clk 0:00:07]}
70... Kf4 {[%clk 0:00:06.3]} 71. Qc4+ {[%clk 0:00:06.7]} 71... Kf3 {[%clk
0:00:06]} 72. Qd5+ {[%clk 0:00:06.8]} 72... Kf4 {[%clk 0:00:06.4]} 73. Qd6+
{[%clk 0:00:06]} 73... Kf5 {[%clk 0:00:06.6]} 74. Qd5+ {[%clk 0:00:05.9]} 74...
Kf6 {[%clk 0:00:07.1]} 75. Qd6+ {[%clk 0:00:06.1]} 75... Kf5 {[%clk 0:00:07.6]}
76. Qd5+ {[%clk 0:00:06.4]} 76... Kf4 {[%clk 0:00:08.3]} 77. Qd6+ {[%clk
0:00:06.5]} 77... Ke4 {[%clk 0:00:08.7]} 78. Qe6+ {[%clk 0:00:06.5]} 78... Kd3
{[%clk 0:00:08.7]} 79. Qf5+ {[%clk 0:00:05.9]} 79... Kd2 {[%clk 0:00:08.2]} 80.
Qd5+ {[%clk 0:00:05.2]} 1/2-1/2

[Event "Late-Titled-Tuesday-Blitz-March-26-2024"]
[Site "Chess.com"]
[Date "2024.03.26"]
[Round "3"]
[White "bazar-wokzal"]
[Black "Dolphin_2010"]
[Result "0-1"]
[WhiteElo "2565"]
[BlackElo "2393"]
[TimeControl "180+1"]
[EndTime "14:31:32 PDT"]
[Termination "Dolphin_2010 won by resignation"]

1. e4 {[%clk 0:03:00.9]} 1... c6 {[%clk 0:02:56]} 2. d4 {[%clk 0:03:00.7]} 2...
d5 {[%clk 0:02:56.9]} 3. e5 {[%clk 0:03:00.7]} 3... Bf5 {[%clk 0:02:55.4]} 4.
Nc3 {[%clk 0:03:00.4]} 4... e6 {[%clk 0:02:54.1]} 5. g4 {[%clk 0:02:56.4]} 5...
Bg6 {[%clk 0:02:52.5]} 6. Nge2 {[%clk 0:02:55.1]} 6... h5 {[%clk 0:02:51.3]} 7.
Nf4 {[%clk 0:02:54.9]} 7... Bh7 {[%clk 0:02:51.7]} 8. Nxh5 {[%clk 0:02:54.9]}
8... c5 {[%clk 0:02:52.3]} 9. dxc5 {[%clk 0:02:54.7]} 9... Nc6 {[%clk
0:02:51.4]} 10. Bb5 {[%clk 0:02:54.3]} 10... Bxc5 {[%clk 0:02:46.5]} 11. Bxc6+
{[%clk 0:02:48.9]} 11... bxc6 {[%clk 0:02:45.7]} 12. Nxg7+ {[%clk 0:02:49.2]}
12... Kf8 {[%clk 0:02:46.1]} 13. Nh5 {[%clk 0:02:47.6]} 13... d4 {[%clk
0:02:25.2]} 14. Na4 {[%clk 0:02:26.4]} 14... Qd5 {[%clk 0:02:15.8]} 15. O-O
{[%clk 0:02:19.6]} 15... Be7 {[%clk 0:02:00.2]} 16. Bf4 {[%clk 0:02:04.5]} 16...
Bg6 {[%clk 0:01:12.2]} 17. Ng3 {[%clk 0:02:03.3]} 17... f6 {[%clk 0:01:05.2]}
18. Re1 {[%clk 0:01:59.4]} 18... f5 {[%clk 0:00:54.1]} 19. gxf5 {[%clk
0:01:56.5]} 19... Bxf5 {[%clk 0:00:48.6]} 20. b3 {[%clk 0:01:42.5]} 20... Nh6
{[%clk 0:00:40.5]} 21. c4 {[%clk 0:01:41.2]} 21... Qd8 {[%clk 0:00:29.7]} 22.
Bxh6+ {[%clk 0:01:34.9]} 22... Rxh6 {[%clk 0:00:28.2]} 23. Nxf5 {[%clk
0:01:35.1]} 23... exf5 {[%clk 0:00:27.9]} 24. Qf3 {[%clk 0:01:35.5]} 24... Kg7
{[%clk 0:00:08.2]} 25. Qxf5 {[%clk 0:01:29.6]} 25... Kh8 {[%clk 0:00:08.2]} 26.
Kh1 {[%clk 0:01:21.8]} 26... Qf8 {[%clk 0:00:08.2]} 27. Qxf8+ {[%clk 0:01:18.8]}
27... Rxf8 {[%clk 0:00:09.1]} 28. Rf1 {[%clk 0:01:13.4]} 28... Bg5 {[%clk
0:00:05.4]} 29. f4 {[%clk 0:00:53]} 29... Rxf4 {[%clk 0:00:05.8]} 30. Nc5 {[%clk
0:00:47.1]} 30... Rfh4 {[%clk 0:00:02.9]} 31. Rf2 {[%clk 0:00:46.8]} 31... Be3
{[%clk 0:00:02.1]} 32. Rg2 {[%clk 0:00:46.3]} 32... Bf4 {[%clk 0:00:03]} 33. Rf1
{[%clk 0:00:44.8]} 33... Rxh2+ {[%clk 0:00:02.8]} 34. Rxh2 {[%clk 0:00:44.7]}
34... Bxh2 {[%clk 0:00:01.8]} 35. Rf6 {[%clk 0:00:35.3]} 35... Rh5 {[%clk
0:00:01.9]} 36. Rf8+ {[%clk 0:00:34]} 36... Kg7 {[%clk 0:00:01.8]} 37. Ne6+
{[%clk 0:00:33.9]} 37... Kh7 {[%clk 0:00:02.4]} 38. Kg2 {[%clk 0:00:32.1]} 38...
Bxe5 {[%clk 0:00:02.1]} 39. Rd8 {[%clk 0:00:31.1]} 39... Rh2+ {[%clk 0:00:01.1]}
40. Kf3 {[%clk 0:00:31.5]} 40... Rxa2 {[%clk 0:00:02]} 41. Nxd4 {[%clk
0:00:31.2]} 41... Bxd4 {[%clk 0:00:02.9]} 42. Rxd4 {[%clk 0:00:30.6]} 42... Ra3
{[%clk 0:00:03.5]} 43. Rd3 {[%clk 0:00:30.5]} 43... a5 {[%clk 0:00:03.4]} 44.
Ke4 {[%clk 0:00:30.7]} 44... a4 {[%clk 0:00:04]} 45. b4 {[%clk 0:00:27.9]} 45...
Ra1 {[%clk 0:00:02.5]} 46. Kd4 {[%clk 0:00:26.2]} 46... Rb1 {[%clk 0:00:01.9]}
47. Kc5 {[%clk 0:00:26.3]} 47... Rb3 {[%clk 0:00:02]} 48. Rd7+ {[%clk
0:00:24.4]} 48... Kg8 {[%clk 0:00:01.1]} 49. Ra7 {[%clk 0:00:21.1]} 49... a3
{[%clk 0:00:02]} 50. b5 {[%clk 0:00:16.6]} 50... cxb5 {[%clk 0:00:02.6]} 51.
cxb5 {[%clk 0:00:17.1]} 51... Kf8 {[%clk 0:00:03.5]} 52. b6 {[%clk 0:00:17.5]}
52... Ke8 {[%clk 0:00:04.1]} 53. Kc6 {[%clk 0:00:16.7]} 53... Rc3+ {[%clk
0:00:02.1]} 54. Kb7 {[%clk 0:00:17]} 54... Kd7 {[%clk 0:00:01.8]} 55. Kb8+
{[%clk 0:00:16.2]} 55... Kd8 {[%clk 0:00:01.7]} 56. b7 {[%clk 0:00:16.3]} 56...
Rb3 {[%clk 0:00:01.6]} 57. Ra4 {[%clk 0:00:16.2]} 57... Kd7 {[%clk 0:00:01.3]}
58. Rd4+ {[%clk 0:00:16]} 58... Kc6 {[%clk 0:00:01.6]} 59. Kc8 {[%clk
0:00:14.3]} 59... Rxb7 {[%clk 0:00:02.2]} 60. Rc4+ {[%clk 0:00:13.4]} 60... Kd5
{[%clk 0:00:02.9]} 61. Ra4 {[%clk 0:00:09.8]} 61... Rb3 {[%clk 0:00:03.5]} 62.
Kc7 {[%clk 0:00:09.2]} 62... Kc5 {[%clk 0:00:04.1]} 63. Kd7 {[%clk 0:00:04.1]}
63... Kb5 {[%clk 0:00:03.7]} 64. Ra8 {[%clk 0:00:04.2]} 64... Kc4 {[%clk
0:00:03.8]} 65. Kd6 {[%clk 0:00:03.8]} 65... Kc3 {[%clk 0:00:04.2]} 66. Kd5
{[%clk 0:00:04]} 66... Kb2 {[%clk 0:00:04.9]} 67. Kc4 {[%clk 0:00:04.3]} 67...
a2 {[%clk 0:00:05.2]} 68. Ra7 {[%clk 0:00:04.4]} 68... Rc3+ {[%clk 0:00:04.2]}
69. Kb4 {[%clk 0:00:04.2]} 69... Rb3+ {[%clk 0:00:04.7]} 70. Kc4 {[%clk
0:00:04.5]} 70... Ra3 {[%clk 0:00:05.4]} 71. Rb7+ {[%clk 0:00:04.4]} 71... Kc2
{[%clk 0:00:06]} 72. Rh7 {[%clk 0:00:04.3]} 72... a1=Q {[%clk 0:00:06.5]} 73.
Rh2+ {[%clk 0:00:04.4]} 73... Kb1 {[%clk 0:00:07]} 74. Rh1+ {[%clk 0:00:04.8]}
74... Ka2 {[%clk 0:00:07.9]} 75. Rh2+ {[%clk 0:00:05.2]} 75... Qb2 {[%clk
0:00:08.4]} 76. Rxb2+ {[%clk 0:00:04.5]} 76... Kxb2 {[%clk 0:00:09.3]} 0-1

[Event "Late-Titled-Tuesday-Blitz-March-26-2024"]
[Site "Chess.com"]
[Date "2024.03.26"]
[Round "3"]
[White "CFalcons8"]
[Black "salgadoLO"]
[Result "1-0"]
[WhiteElo "2404"]
[BlackElo "2168"]
[TimeControl "180+1"]
[EndTime "14:31:33 PDT"]
[Termination "CFalcons8 won on time"]

1. c4 {[%clk 0:02:59]} 1... c6 {[%clk 0:02:56.1]} 2. d4 {[%clk 0:02:58.8]} 2...
d5 {[%clk 0:02:55.9]} 3. cxd5 {[%clk 0:02:58.5]} 3... cxd5 {[%clk 0:02:55.3]} 4.
Nc3 {[%clk 0:02:59.4]} 4... Nf6 {[%clk 0:02:55.3]} 5. Nf3 {[%clk 0:02:59.2]}
5... Nc6 {[%clk 0:02:52.4]} 6. Bf4 {[%clk 0:02:59]} 6... Bf5 {[%clk 0:02:52]} 7.
e3 {[%clk 0:02:59.1]} 7... e6 {[%clk 0:02:51.2]} 8. a3 {[%clk 0:02:58.5]} 8...
Bd6 {[%clk 0:02:44.9]} 9. Bxd6 {[%clk 0:02:57.1]} 9... Qxd6 {[%clk 0:02:44.9]}
10. Bd3 {[%clk 0:02:57.5]} 10... Bxd3 {[%clk 0:02:40.4]} 11. Qxd3 {[%clk
0:02:58.4]} 11... O-O {[%clk 0:02:40.4]} 12. O-O {[%clk 0:02:56.4]} 12... Rfc8
{[%clk 0:02:35.8]} 13. Rfc1 {[%clk 0:02:52.2]} 13... Na5 {[%clk 0:02:33.1]} 14.
Nd2 {[%clk 0:02:52.2]} 14... a6 {[%clk 0:02:23.4]} 15. b4 {[%clk 0:02:45.8]}
15... Nc4 {[%clk 0:02:22.1]} 16. Na4 {[%clk 0:02:42.3]} 16... b5 {[%clk
0:02:04.2]} 17. Nc5 {[%clk 0:02:40.7]} 17... a5 {[%clk 0:01:54.9]} 18. Nxc4
{[%clk 0:02:35.3]} 18... dxc4 {[%clk 0:01:43.7]} 19. Qd2 {[%clk 0:02:28.2]}
19... axb4 {[%clk 0:01:41.1]} 20. axb4 {[%clk 0:02:29.1]} 20... Nd5 {[%clk
0:01:35.4]} 21. Qb2 {[%clk 0:02:22.9]} 21... h6 {[%clk 0:01:19.5]} 22. Ra5
{[%clk 0:02:09.9]} 22... c3 {[%clk 0:01:02.4]} 23. Qb3 {[%clk 0:01:51.5]} 23...
Rxa5 {[%clk 0:00:58.9]} 24. bxa5 {[%clk 0:01:52.4]} 24... b4 {[%clk 0:00:53.5]}
25. a6 {[%clk 0:01:49.1]} 25... Rxc5 {[%clk 0:00:46.4]} 26. dxc5 {[%clk
0:01:50]} 26... Qxa6 {[%clk 0:00:43.3]} 27. g3 {[%clk 0:01:40.9]} 27... Qb5
{[%clk 0:00:12.2]} 28. e4 {[%clk 0:01:38.6]} 28... Nf6 {[%clk 0:00:12.1]} 29.
Rxc3 {[%clk 0:01:37.6]} 29... Nxe4 {[%clk 0:00:08.9]} 30. Rc4 {[%clk 0:01:35.4]}
30... Nd2 {[%clk 0:00:07.8]} 31. Qxb4 {[%clk 0:01:28.7]} 31... Qxc4 {[%clk
0:00:07.4]} 32. Qxd2 {[%clk 0:01:28.5]} 32... Qxc5 {[%clk 0:00:07.6]} 33. Qd8+
{[%clk 0:01:28.1]} 33... Kh7 {[%clk 0:00:07.4]} 34. Qd3+ {[%clk 0:01:28.2]}
34... Qf5 {[%clk 0:00:06.1]} 35. Qe3 {[%clk 0:01:25.1]} 35... e5 {[%clk
0:00:06.1]} 36. h4 {[%clk 0:01:25]} 36... h5 {[%clk 0:00:06.4]} 37. Kh2 {[%clk
0:01:24.9]} 37... f6 {[%clk 0:00:06.9]} 38. Kg2 {[%clk 0:01:19.5]} 38... Qg6
{[%clk 0:00:07.6]} 39. Kh2 {[%clk 0:01:18.7]} 39... Qf5 {[%clk 0:00:08.3]} 40.
Qe2 {[%clk 0:01:18.1]} 40... Qg4 {[%clk 0:00:08.6]} 41. f3 {[%clk 0:01:15.8]}
41... Qf5 {[%clk 0:00:08.5]} 42. Kg2 {[%clk 0:01:14.5]} 42... Qg6 {[%clk
0:00:08.9]} 43. Qd2 {[%clk 0:01:12.6]} 43... Qf5 {[%clk 0:00:09]} 44. Qe2 {[%clk
0:01:11.5]} 44... Qg6 {[%clk 0:00:09]} 45. Kh3 {[%clk 0:01:10.5]} 45... Qf5+
{[%clk 0:00:08.6]} 46. g4 {[%clk 0:01:09.9]} 46... hxg4+ {[%clk 0:00:08.1]} 47.
fxg4 {[%clk 0:01:10.8]} 47... Qf4 {[%clk 0:00:08.3]} 48. g5 {[%clk 0:00:59.5]}
48... f5 {[%clk 0:00:07.4]} 49. Qh5+ {[%clk 0:00:58.9]} 49... Kg8 {[%clk
0:00:06.9]} 50. Qe8+ {[%clk 0:00:59.1]} 50... Kh7 {[%clk 0:00:07]} 51. Qh5+
{[%clk 0:00:57.2]} 51... Kg8 {[%clk 0:00:06.9]} 52. g6 {[%clk 0:00:54]} 52...
Qe3+ {[%clk 0:00:06]} 53. Kg2 {[%clk 0:00:53.6]} 53... Qe4+ {[%clk 0:00:05.4]}
54. Kh3 {[%clk 0:00:53.3]} 54... Qe3+ {[%clk 0:00:04.8]} 55. Kg2 {[%clk
0:00:53.3]} 55... Qd2+ {[%clk 0:00:04.2]} 56. Kh1 {[%clk 0:00:51]} 56... Qe1+
{[%clk 0:00:03.6]} 57. Kg2 {[%clk 0:00:51.2]} 57... Qd2+ {[%clk 0:00:03.3]} 58.
Kg3 {[%clk 0:00:51]} 58... Qe3+ {[%clk 0:00:03]} 59. Kh2 {[%clk 0:00:49.7]}
59... Qd2+ {[%clk 0:00:03.1]} 60. Kg1 {[%clk 0:00:49.5]} 60... Qe1+ {[%clk
0:00:02.9]} 61. Kg2 {[%clk 0:00:49.8]} 61... Qe4+ {[%clk 0:00:02.9]} 62. Kf1
{[%clk 0:00:49.8]} 62... Qf4+ {[%clk 0:00:02.9]} 63. Ke1 {[%clk 0:00:49.8]}
63... Qe3+ {[%clk 0:00:02.8]} 64. Kd1 {[%clk 0:00:50.2]} 64... Qd3+ {[%clk
0:00:03.1]} 65. Kc1 {[%clk 0:00:49.9]} 65... Qc3+ {[%clk 0:00:03.4]} 66. Kb1
{[%clk 0:00:50.3]} 66... Qb3+ {[%clk 0:00:03.7]} 67. Ka1 {[%clk 0:00:50.7]}
67... Qa4+ {[%clk 0:00:04]} 68. Kb2 {[%clk 0:00:51]} 68... Qb4+ {[%clk
0:00:04.1]} 69. Kc2 {[%clk 0:00:51.6]} 69... Qc4+ {[%clk 0:00:04.1]} 70. Kd2
{[%clk 0:00:52.3]} 70... Qf4+ {[%clk 0:00:04.1]} 71. Kc3 {[%clk 0:00:50.9]}
71... Qe3+ {[%clk 0:00:04.1]} 72. Kc4 {[%clk 0:00:51.2]} 72... Qd4+ {[%clk
0:00:03.5]} 73. Kb5 {[%clk 0:00:51.6]} 73... Qd5+ {[%clk 0:00:03.6]} 74. Kb6
{[%clk 0:00:51.9]} 74... Qd6+ {[%clk 0:00:03.7]} 75. Kb5 {[%clk 0:00:52.4]}
75... Qd5+ {[%clk 0:00:04]} 76. Kb6 {[%clk 0:00:52.5]} 76... Qd6+ {[%clk
0:00:04.3]} 77. Kb7 {[%clk 0:00:53.1]} 77... Qd7+ {[%clk 0:00:04.2]} 78. Kb8
{[%clk 0:00:53.2]} 78... Qd8+ {[%clk 0:00:04.2]} 79. Kb7 {[%clk 0:00:53.6]}
79... Qf6 {[%clk 0:00:02.9]} 80. Kc7 {[%clk 0:00:51.2]} 80... Qe7+ {[%clk
0:00:02]} 81. Kc6 {[%clk 0:00:51.2]} 81... Qe6+ {[%clk 0:00:02.2]} 82. Kc5
{[%clk 0:00:51.6]} 82... Qe7+ {[%clk 0:00:01.3]} 83. Kd5 {[%clk 0:00:51.8]}
83... Qd7+ {[%clk 0:00:01.8]} 84. Kxe5 {[%clk 0:00:52]} 84... Qe7+ {[%clk
0:00:02.3]} 85. Kxf5 {[%clk 0:00:49.8]} 85... Qc5+ {[%clk 0:00:03]} 86. Kg4
{[%clk 0:00:50.1]} 86... Qd4+ {[%clk 0:00:03.4]} 87. Kg3 {[%clk 0:00:50.3]}
87... Qe3+ {[%clk 0:00:03.6]} 88. Qf3 {[%clk 0:00:50.2]} 88... Qe5+ {[%clk
0:00:03.5]} 89. Qf4 {[%clk 0:00:50.9]} 89... Qd5 {[%clk 0:00:01.8]} 90. Qb8+
{[%clk 0:00:50]} 1-0

[Event "Late-Titled-Tuesday-Blitz-March-26-2024"]
[Site "Chess.com"]
[Date "2024.03.26"]
[Round "3"]
[White "Mikhail_Bryakin"]
[Black "YoreDea"]
[Result "1/2-1/2"]
[WhiteElo "2854"]
[BlackElo "2565"]
[TimeControl "180+1"]
[EndTime "14:31:47 PDT"]
[Termination "Game drawn by repetition"]

1. b3 {[%clk 0:02:56]} 1... d5 {[%clk 0:02:54.7]} 2. Bb2 {[%clk 0:02:42.8]} 2...
c6 {[%clk 0:02:54.5]} 3. Nf3 {[%clk 0:02:40.9]} 3... Nf6 {[%clk 0:02:50.5]} 4.
d3 {[%clk 0:02:28.8]} 4... Bg4 {[%clk 0:02:41.8]} 5. Nbd2 {[%clk 0:02:27.5]}
5... Nbd7 {[%clk 0:02:41.5]} 6. h3 {[%clk 0:02:28.2]} 6... Bh5 {[%clk
0:02:37.7]} 7. g4 {[%clk 0:02:28.4]} 7... Bg6 {[%clk 0:02:37.7]} 8. Nh4 {[%clk
0:02:29.1]} 8... e5 {[%clk 0:02:36.7]} 9. Bg2 {[%clk 0:02:29.7]} 9... a5 {[%clk
0:02:29]} 10. a3 {[%clk 0:02:29.4]} 10... Bd6 {[%clk 0:02:13.4]} 11. e3 {[%clk
0:02:27.7]} 11... a4 {[%clk 0:02:09.7]} 12. b4 {[%clk 0:02:27.7]} 12... O-O
{[%clk 0:02:07]} 13. Nxg6 {[%clk 0:02:27.5]} 13... fxg6 {[%clk 0:02:05.8]} 14.
c4 {[%clk 0:02:12.2]} 14... Qe7 {[%clk 0:02:03]} 15. Qc2 {[%clk 0:02:02.8]}
15... g5 {[%clk 0:02:01.6]} 16. O-O {[%clk 0:01:35.3]} 16... Rfc8 {[%clk
0:01:34.8]} 17. c5 {[%clk 0:01:26.1]} 17... Bc7 {[%clk 0:01:30.6]} 18. Rae1
{[%clk 0:01:26.8]} 18... Qf7 {[%clk 0:01:15]} 19. Nb1 {[%clk 0:01:05.4]} 19...
h5 {[%clk 0:01:07.9]} 20. gxh5 {[%clk 0:01:04]} 20... Qxh5 {[%clk 0:01:07.2]}
21. Qd1 {[%clk 0:00:52.8]} 21... Qh4 {[%clk 0:01:05.5]} 22. Nd2 {[%clk
0:00:49.4]} 22... e4 {[%clk 0:00:52.5]} 23. dxe4 {[%clk 0:00:31.4]} 23... dxe4
{[%clk 0:00:52.6]} 24. f4 {[%clk 0:00:32.1]} 24... g4 {[%clk 0:00:45.7]} 25.
Nxe4 {[%clk 0:00:25]} 25... gxh3 {[%clk 0:00:38.6]} 26. Bf3 {[%clk 0:00:25.5]}
26... Re8 {[%clk 0:00:28]} 27. Nd6 {[%clk 0:00:11.3]} 27... Bxd6 {[%clk
0:00:22.9]} 28. cxd6 {[%clk 0:00:10.4]} 28... Ne4 {[%clk 0:00:22]} 29. Bxe4
{[%clk 0:00:04.8]} 29... Rxe4 {[%clk 0:00:21.8]} 30. Qf3 {[%clk 0:00:05.5]}
30... Rae8 {[%clk 0:00:21.5]} 31. Kh1 {[%clk 0:00:03]} 31... b6 {[%clk
0:00:19.6]} 32. Rg1 {[%clk 0:00:03.2]} 32... Nf6 {[%clk 0:00:13.7]} 33. d7
{[%clk 0:00:03.8]} 33... Nxd7 {[%clk 0:00:11.1]} 34. Rxg7+ {[%clk 0:00:02.9]}
34... Kf8 {[%clk 0:00:11.7]} 35. Reg1 {[%clk 0:00:03.2]} 35... h2 {[%clk
0:00:08.4]} 36. R1g2 {[%clk 0:00:01.9]} 36... Qe1+ {[%clk 0:00:07.4]} 37. Kxh2
{[%clk 0:00:02.6]} 37... Qh4+ {[%clk 0:00:07.1]} 38. Qh3 {[%clk 0:00:02.4]}
38... Qxh3+ {[%clk 0:00:07.7]} 39. Kxh3 {[%clk 0:00:03.3]} 39... Rxe3+ {[%clk
0:00:08.4]} 40. Kh4 {[%clk 0:00:04]} 40... R8e7 {[%clk 0:00:07.4]} 41. Rg8+
{[%clk 0:00:04]} 41... Kf7 {[%clk 0:00:08.1]} 42. R8g7+ {[%clk 0:00:04.5]} 42...
Ke6 {[%clk 0:00:08.7]} 43. R2g6+ {[%clk 0:00:04]} 43... Kf5 {[%clk 0:00:08.1]}
44. Rxe7 {[%clk 0:00:04.5]} 44... Rxe7 {[%clk 0:00:08.1]} 45. Rxc6 {[%clk
0:00:05.2]} 45... Ke4 {[%clk 0:00:06.5]} 46. Kg5 {[%clk 0:00:04.9]} 46... b5
{[%clk 0:00:06.5]} 47. Rd6 {[%clk 0:00:03.9]} 47... Rf7 {[%clk 0:00:06.5]} 48.
Be5 {[%clk 0:00:02.1]} 48... Nxe5 {[%clk 0:00:05.5]} 49. fxe5 {[%clk 0:00:02.7]}
49... Kxe5 {[%clk 0:00:05.6]} 50. Rb6 {[%clk 0:00:03.4]} 50... Rf5+ {[%clk
0:00:05.7]} 51. Kg4 {[%clk 0:00:03.2]} 51... Ke4 {[%clk 0:00:05.8]} 52. Rb8
{[%clk 0:00:03]} 52... Re5 {[%clk 0:00:05.9]} 53. Rd8 {[%clk 0:00:02.7]} 53...
Rd5 {[%clk 0:00:06.3]} 54. Rc8 {[%clk 0:00:03]} 54... Kd4 {[%clk 0:00:06.9]} 55.
Kf4 {[%clk 0:00:03.7]} 55... Kd3 {[%clk 0:00:07.1]} 56. Kf3 {[%clk 0:00:03.9]}
56... Rd4 {[%clk 0:00:07.4]} 57. Rc5 {[%clk 0:00:04.6]} 57... Rc4 {[%clk
0:00:07.7]} 58. Rxb5 {[%clk 0:00:05.3]} 58... Kc3 {[%clk 0:00:08.6]} 59. Rb8
{[%clk 0:00:05]} 59... Kb3 {[%clk 0:00:09.1]} 60. b5 {[%clk 0:00:05.9]} 60...
Kxa3 {[%clk 0:00:09.3]} 61. b6 {[%clk 0:00:06.8]} 61... Rb4 {[%clk 0:00:09.9]}
62. b7 {[%clk 0:00:07.4]} 62... Kb2 {[%clk 0:00:10.4]} 63. Ke3 {[%clk
0:00:07.5]} 63... a3 {[%clk 0:00:11]} 64. Rh8 {[%clk 0:00:07]} 64... Rxb7 {[%clk
0:00:10.8]} 65. Rh2+ {[%clk 0:00:07.7]} 65... Ka1 {[%clk 0:00:10.1]} 66. Rh1+
{[%clk 0:00:08]} 66... Rb1 {[%clk 0:00:10.2]} 67. Rh8 {[%clk 0:00:08.5]} 67...
a2 {[%clk 0:00:09.9]} 68. Kd2 {[%clk 0:00:07.9]} 68... Rg1 {[%clk 0:00:08.6]}
69. Rb8 {[%clk 0:00:07.5]} 69... Rg2+ {[%clk 0:00:08.2]} 70. Kc1 {[%clk
0:00:07.7]} 70... Rg1+ {[%clk 0:00:07.7]} 71. Kc2 {[%clk 0:00:08.2]} 71... Rb1
{[%clk 0:00:08.6]} 72. Rh8 {[%clk 0:00:07.5]} 72... Rb7 {[%clk 0:00:08.5]} 73.
Rh1+ {[%clk 0:00:07.4]} 73... Rb1 {[%clk 0:00:09.2]} 74. Rh7 {[%clk 0:00:07.7]}
74... Rb2+ {[%clk 0:00:09.6]} 75. Kc1 {[%clk 0:00:07.6]} 75... Rf2 {[%clk
0:00:09.8]} 76. Rc7 {[%clk 0:00:07.5]} 76... Rf1+ {[%clk 0:00:08.5]} 77. Kc2
{[%clk 0:00:08.1]} 77... Rg1 {[%clk 0:00:07.6]} 78. Rc8 {[%clk 0:00:07.9]} 78...
Rg2+ {[%clk 0:00:07.1]} 79. Kc1 {[%clk 0:00:08.4]} 79... Rg1+ {[%clk 0:00:07.5]}
80. Kc2 {[%clk 0:00:09]} 80... Rg7 {[%clk 0:00:06.6]} 81. Kc1 {[%clk 0:00:08.8]}
81... Rg2 {[%clk 0:00:06]} 82. Rc7 {[%clk 0:00:09.1]} 82... Re2 {[%clk
0:00:05.9]} 83. Rc8 {[%clk 0:00:09.2]} 83... Re7 {[%clk 0:00:06]} 84. Rc6 {[%clk
0:00:09.3]} 84... Re1+ {[%clk 0:00:02.7]} 85. Kc2 {[%clk 0:00:09.8]} 85... Rb1
{[%clk 0:00:03.3]} 86. Rc4 {[%clk 0:00:09.2]} 86... Rb2+ {[%clk 0:00:04]} 87.
Kc1 {[%clk 0:00:09.5]} 87... Rb1+ {[%clk 0:00:04.9]} 88. Kc2 {[%clk 0:00:10]}
88... Rb2+ {[%clk 0:00:05.8]} 89. Kc1 {[%clk 0:00:10.4]} 89... Rb1+ {[%clk
0:00:06.5]} 90. Kc2 {[%clk 0:00:10.6]} 1/2-1/2